bitfinex-derivatives/quotes_SOLF0:USTF0_20250518
["timestamp","ask_amount","ask_price","bid_price","bid_amount"]
[1747560343806,116.08,171.09,171.01,63.8856]
[1747560345019,5.8447,171.04,171.01,63.8856]
[1747560346119,5.8447,171.04,171.02,5.8453]
[1747560346620,5.8445,171.05,171.02,5.8453]
[1747560349223,5.8441,171.06,171.03,5.845]
[1747560349520,5.41265026,171.08,171.01,58.04]
[1747560349925,5.8439,171.07,171.03,5.8449]
[1747560350122,5.8439,171.07,171.03,63.8849]
[1747560350624,5.8439,171.07,171.04,5.8446]
[1747560351524,5.8442,171.06,171.03,63.885]
[1747560351821,5.8442,171.06,171.03,5.845]
[1747560358628,5.8442,171.06,171.04,5.8447]
[1747560360230,5.8438,171.07,171.04,5.8447]
[1747560360426,63.45265026,171.09,171.05,5.8443]
[1747560360724,69.29575026,171.09,171.02,58.04]
[1747560361129,11.25575026,171.09,171.02,58.04]
[1747560361630,5.8434,171.08,171.02,58.04]
[1747560361834,5.41265026,171.09,171.02,58.04]
[1747560362330,5.8439,171.07,171.04,5.8445]
[1747560364726,5.8435,171.08,171.04,5.8445]
[1747560364926,5.41265026,171.09,171.02,58.04]
[1747560365324,11.25575026,171.09,171.03,1.8943]
[1747560365524,11.25575026,171.09,171.04,58.02]
[1747560366131,5.41265026,171.09,171.04,58.02]
[1747560366932,5.8435,171.08,171.05,5.8443]
[1747560367429,5.41265026,171.09,171.04,58.02]
[1747560367829,5.41265026,171.09,171.03,1.8943]
[1747560368731,5.8439,171.07,171.05,5.8444]
[1747560369237,5.8441,171.06,171.03,1.8943]
[1747560369439,5.41265026,171.09,171.01,58.02]
[1747560369631,63.43265026,171.09,171.01,58.02]
[1747560369833,5.8441,171.06,171.03,5.8448]
[1747560370535,58.02,171.09,171.01,58.02]
[1747560371039,58.04,171.1,171.06,5.844]
[1747560371239,5.4335896,171.08,171.06,5.844]
[1747560372041,5.4335896,171.08,171.05,5.8442]
[1747560372241,11.2769896,171.08,171.05,5.8442]
[1747560372731,5.4335896,171.08,171.06,5.844]
[1747560373228,5.4335896,171.08,171.02,1.8409]
[1747560374034,5.4335896,171.08,171.07,5.8437]
[1747560374239,5.4335896,171.09,171.06,116.04]
[1747560374440,2.3961896,171.09,171.08,5.8433]
[1747560375944,2.3961896,171.09,171.07,5.8436]
[1747560376240,2.3961896,171.09,171.05,58.02]
[1747560376639,2.3961896,171.09,171.06,5.8438]
[1747560376840,2.3961896,171.09,171.05,58.02]
[1747560377240,2.3961896,171.09,171.02,1.8409]
[1747560377545,5.8443,171.06,171.02,7.31260887]
[1747560377746,58.02,171.09,171.02,11.31690887]
[1747560378245,58.02,171.09,171.02,5.47170887]
[1747560378649,5.8439,171.07,171.02,5.47170887]
[1747560378850,58.02,171.09,171.02,5.47170887]
[1747560379042,58.02,171.09,171.03,5.8449]
[1747560379649,5.844,171.07,171.02,5.47170887]
[1747560379948,5.844,171.07,171.0,116.04]
[1747560380755,5.8441,171.06,171.03,5.8448]
[1747560382044,5.8445,171.05,171.02,5.8453]
[1747560383456,58.02,171.09,171.0,58.02]
[1747560383750,58.02,171.08,171.0,58.02]
[1747560384656,5.8448,171.04,171.0,58.02]
[1747560384849,58.02,171.08,171.0,58.02]
[1747560385454,5.8448,171.04,171.01,5.8456]
[1747560385652,5.8448,171.04,171.0,58.02]
[1747560386049,5.8445,171.05,171.02,5.8454]
[1747560387054,58.02,171.08,171.02,5.8454]
[1747560388352,5.8447,171.04,171.01,5.8457]
[1747560390257,5.8451,171.03,171.01,5.8457]
[1747560390455,5.8451,171.03,171.0,63.8659]
[1747560390961,5.8449,171.04,171.0,58.02]
[1747560391146,65.26478613,171.08,171.01,5.8455]
[1747560391553,65.26478613,171.08,171.0,63.8659]
[1747560392051,65.26478613,171.08,171.02,5.8453]
[1747560392458,5.8446,171.05,171.02,5.8453]
[1747560393664,5.8448,171.04,171.01,5.8456]
[1747560394564,5.8448,171.04,171.02,5.8453]
[1747560395061,5.8444,171.05,171.02,5.8453]
[1747560395259,65.26478613,171.08,171.01,5.8456]
[1747560396058,65.26478613,171.08,171.02,5.8454]
[1747560396258,65.26478613,171.08,171.0,58.02]
[1747560397565,65.26478613,171.08,171.02,5.8454]
[1747560398165,58.02,171.08,171.02,5.8454]
[1747560398558,58.02,171.08,171.01,5.8456]
[1747560398966,5.8449,171.04,171.01,5.8456]
[1747560399669,5.8449,171.04,171.02,5.8454]
[1747560399863,5.8445,171.05,171.02,5.8454]
[1747560401368,5.8447,171.04,171.02,5.8454]
[1747560402169,5.8444,171.05,171.02,5.8454]
[1747560403170,5.8447,171.04,171.02,5.8454]
[1747560403975,5.8447,171.04,171.01,5.8456]
[1747560404565,5.8452,171.03,171.01,5.8456]
[1747560405279,5.8448,171.04,171.01,5.8456]
[1747560405678,58.02,171.08,171.02,5.8453]
[1747560405873,5.8446,171.05,171.02,5.8453]
[1747560407176,5.8448,171.04,171.02,5.8453]
[1747560410483,5.8448,171.04,171.01,5.8456]
[1747560411784,5.8448,171.04,171.02,5.8453]
[1747560412284,5.8445,171.05,171.02,5.8453]
[1747560412585,58.02,171.08,171.01,5.8456]
[1747560412984,5.845,171.04,171.01,5.8456]
[1747560415486,5.845,171.04,171.02,5.8453]
[1747560416988,5.845,171.04,171.01,5.8456]
[1747560417789,5.845,171.04,170.98,119.8101]
[1747560417790,5.845,171.04,171.02,5.8454]
[1747560418285,7.24478613,171.09,170.98,119.8101]
[1747560418495,7.24478613,171.09,171.03,3.22034852]
[1747560418691,7.24478613,171.09,171.04,58.02]
[1747560418893,7.24478613,171.09,171.07,5.8435]
[1747560419587,5.843,171.1,171.07,5.8435]
[1747560420296,7.24478613,171.12,171.05,3.22034852]
[1747560420684,7.24478613,171.12,171.05,7.15624852]
[1747560420984,7.24478613,171.12,171.11,5.8423]
[1747560422992,142.27275958,171.16,171.08,58.02]
[1747560423189,200.29275958,171.16,171.08,58.02]
[1747560424096,200.29275958,171.16,171.12,5.8417]
[1747560424795,5.841,171.15,171.12,5.8417]
[1747560425697,193.04807345,171.16,171.13,5.8416]
[1747560427900,187.20727345,171.16,171.08,58.02]
[1747560428100,129.18727345,171.16,171.08,58.02]
[1747560428701,67.15178613,171.18,171.08,58.02]
[1747560428702,7.24478613,171.21,171.08,63.04971536]
[1747560429896,12.27450149,171.21,171.09,116.02]
[1747560430502,5.8404,171.17,171.13,5.8414]
[1747560431502,5.8406,171.16,171.13,5.8414]
[1747560433205,5.8404,171.17,171.14,5.8413]
[1747560433906,58.0,171.19,171.15,5.8407]
[1747560434298,58.0,171.19,171.1,1.8575]
[1747560434608,65.24478613,171.22,171.11,61.9171]
[1747560435305,5.8394,171.2,171.16,5.8403]
[1747560435896,65.24478613,171.22,171.16,5.8403]
[1747560436197,65.24478613,171.22,171.15,5.8409]
[1747560436506,5.8398,171.19,171.15,5.8409]
[1747560438207,5.8398,171.19,171.16,5.8406]
[1747560439311,5.8389,171.21,171.18,5.8399]
[1747560441501,5.8389,171.21,171.19,5.8396]
[1747560442810,5.8387,171.22,171.19,5.8396]
[1747560445499,5.8389,171.21,171.19,5.8396]
[1747560446909,5.8393,171.2,171.18,5.8398]
[1747560447209,5.8393,171.2,171.15,57.98]
[1747560447412,5.8393,171.2,171.17,5.84]
[1747560447710,58.0,171.23,171.15,57.98]
[1747560448508,5.8397,171.19,171.16,5.8404]
[1747560450305,5.8403,171.17,171.13,57.98]
[1747560451308,5.84,171.18,171.15,5.8409]
[1747560451704,57.98,171.21,171.13,57.98]
[1747560451903,5.8405,171.17,171.14,5.8411]
[1747560452506,5.8405,171.17,171.15,5.8409]
[1747560453510,5.8405,171.17,171.12,57.98]
[1747560453511,5.8405,171.17,171.14,5.8411]
[1747560453909,5.8405,171.17,171.12,57.96]
[1747560454212,5.8401,171.18,171.15,5.8409]
[1747560455310,3.21764023,171.19,171.12,57.96]
[1747560455502,5.8405,171.17,171.14,5.8412]
[1747560456613,3.21764023,171.19,171.14,5.8412]
[1747560459011,57.98,171.21,171.11,65.11474023]
[1747560459216,3.21764023,171.21,171.13,3.21764023]
[1747560459411,3.21764023,171.21,171.14,57.96]
[1747560459612,3.21764023,171.21,171.19,5.8394]
[1747560459809,3.21764023,171.21,171.15,57.98]
[1747560460118,3.21764023,171.21,171.13,3.21764023]
[1747560460516,3.21764023,171.21,171.11,3.9171]
[1747560460517,5.8383,171.23,171.15,3.21764023]
[1747560460713,8.62035137,171.24,171.15,3.21764023]
[1747560460908,8.62035137,171.24,171.16,1.9812]
[1747560461215,5.40271114,171.24,171.22,5.8384]
[1747560461813,5.8379,171.24,171.22,5.8384]
[1747560462111,3.8694,171.26,171.22,5.8384]
[1747560462311,5.8376,171.25,171.22,5.8384]
[1747560462819,5.40271114,171.27,171.25,5.8375]
[1747560463617,5.40271114,171.27,171.17,3.8317]
[1747560464111,5.40271114,171.27,171.2,5.839]
[1747560464716,5.40271114,171.27,171.19,5.8395]
[1747560465121,5.8385,171.23,171.2,5.8392]
[1747560465316,5.8385,171.23,171.17,3.8317]
[1747560465718,5.8385,171.23,171.19,5.8394]
[1747560466021,5.8385,171.23,171.17,3.8317]
[1747560467411,5.8387,171.22,171.17,3.8317]
[1747560468607,5.8387,171.22,171.19,5.8394]
[1747560471723,5.8383,171.23,171.2,5.8392]
[1747560472424,5.838,171.24,171.17,3.8317]
[1747560473022,5.838,171.24,171.17,61.7717]
[1747560473423,5.838,171.24,171.2,5.839]
[1747560473922,5.838,171.24,171.17,61.7717]
[1747560474531,5.838,171.24,171.2,5.839]
[1747560474822,5.8383,171.23,171.2,5.839]
[1747560475025,57.94,171.25,171.2,5.839]
[1747560475421,5.838,171.24,171.2,5.839]
[1747560476125,5.838,171.24,171.21,5.8388]
[1747560476328,5.8384,171.23,171.17,61.7717]
[1747560476826,5.8384,171.23,171.2,5.8392]
[1747560477324,5.8386,171.22,171.19,5.8394]
[1747560477825,57.94,171.25,171.16,1.9812]
[1747560478420,62.96351794,171.25,171.16,1.9812]
[1747560479423,62.96351794,171.25,171.15,57.94]
[1747560479618,5.8394,171.2,171.17,5.8401]
[1747560480327,5.8394,171.2,171.15,57.94]
[1747560481026,5.8394,171.2,171.17,5.8401]
[1747560483429,5.839,171.21,171.18,5.8399]
[1747560483824,5.839,171.21,171.15,57.94]
[1747560484029,66.99513445,171.22,171.19,5.8393]
[1747560484226,63.7787,171.22,171.19,5.8393]
[1747560484831,5.8389,171.21,171.19,5.8393]
[1747560485735,57.94,171.22,171.16,3.21643445]
[1747560485929,5.40271114,171.23,171.18,3.21643445]
[1747560486434,5.8379,171.24,171.22,5.8385]
[1747560488439,5.8379,171.24,171.21,5.8388]
[1747560488735,5.8382,171.23,171.18,57.94]
[1747560489034,5.40271114,171.26,171.18,57.94]
[1747560489235,10.4262272,171.26,171.14,5.47170887]
[1747560489435,10.4262272,171.26,171.15,57.94]
[1747560489736,5.8397,171.19,171.16,5.8404]
[1747560490136,57.94,171.22,171.15,57.94]
[1747560490335,5.8401,171.18,171.15,5.8409]
[1747560490738,67.23721114,171.22,171.12,63.8043]
[1747560490932,5.8396,171.19,171.15,5.841]
[1747560491337,5.8396,171.19,171.16,5.8405]
[1747560492838,67.23721114,171.22,171.12,63.8043]
[1747560493442,5.8391,171.21,171.12,63.8043]
[1747560494327,67.23721114,171.22,171.12,63.8043]
[1747560494532,61.8345,171.22,171.12,63.8043]
[1747560494736,5.8396,171.19,171.16,5.8403]
[1747560495236,5.8396,171.19,171.12,63.8043]
[1747560495541,5.8396,171.19,171.12,121.7443]
[1747560496245,5.8402,171.18,171.12,63.8043]
[1747560496535,61.8345,171.22,171.12,63.8043]
[1747560497150,61.8345,171.22,171.15,5.8407]
[1747560497342,5.40271114,171.21,171.12,63.8043]
[1747560497542,5.40271114,171.21,171.12,121.7443]
[1747560497843,5.40271114,171.21,171.16,5.8403]
[1747560497844,5.8398,171.19,171.16,5.8403]
[1747560498045,5.40271114,171.21,171.13,57.92]
[1747560498847,5.84,171.18,171.15,5.8407]
[1747560499246,5.40271114,171.21,171.15,5.8407]
[1747560499546,5.40271114,171.21,171.14,5.841]
[1747560500541,5.40271114,171.21,171.13,57.92]
[1747560500542,5.8402,171.18,171.15,5.841]
[1747560503544,5.40271114,171.21,171.14,5.8413]
[1747560503744,5.40271114,171.2,171.13,57.92]
[1747560504644,5.8408,171.16,171.13,63.7615]
[1747560504847,5.8408,171.16,171.13,5.8415]
[1747560505950,61.8345,171.22,171.1,202.75057117]
[1747560505951,5.8404,171.17,171.14,5.8412]
[1747560507453,5.8407,171.16,171.14,5.8412]
[1747560507749,5.8407,171.16,171.13,5.8415]
[1747560508351,5.8407,171.16,171.14,5.8412]
[1747560510151,5.8404,171.17,171.14,5.8412]
[1747560511954,63.34271114,171.19,171.12,3.21789917]
[1747560512452,11.24241114,171.19,171.16,5.8405]
[1747560514653,5.8401,171.18,171.15,5.8409]
[1747560515153,5.8398,171.19,171.16,5.8404]
[1747560515555,5.8398,171.19,171.1,202.75057117]
[1747560516355,5.8398,171.19,171.16,5.8404]
[1747560517954,5.84,171.18,171.16,5.8404]
[1747560519454,5.84,171.18,171.15,5.8408]
[1747560524652,5.8397,171.19,171.16,5.8405]
[1747560526058,5.84,171.18,171.15,5.8409]
[1747560526758,5.8403,171.17,171.15,5.8409]
[1747560527059,63.34271114,171.2,171.1,202.75057117]
[1747560527460,5.8407,171.16,171.1,202.75057117]
[1747560527659,5.8407,171.16,171.13,5.8413]
[1747560528358,5.8403,171.17,171.14,5.8411]
[1747560528560,63.34271114,171.2,171.1,202.75057117]
[1747560528959,5.8401,171.18,171.15,5.8409]
[1747560530262,5.8403,171.17,171.15,5.8409]
[1747560532264,5.8402,171.18,171.15,5.8409]
[1747560532761,63.34271114,171.2,171.15,5.8409]
[1747560533063,5.8403,171.18,171.15,5.8409]
[1747560533263,63.34271114,171.2,171.15,5.8409]
[1747560533452,5.40271114,171.19,171.14,5.8411]
[1747560534266,5.8403,171.17,171.14,5.8411]
[1747560535067,5.8401,171.18,171.1,202.75057117]
[1747560535661,5.8401,171.18,171.15,5.8408]
[1747560536672,5.8403,171.17,171.14,5.8413]
[1747560536872,5.40271114,171.19,171.1,150.28228004]
[1747560537171,5.8409,171.16,171.13,5.8414]
[1747560537970,5.8409,171.16,171.14,5.8413]
[1747560542375,5.841,171.15,171.1,148.02852184]
[1747560543275,3.21795067,171.16,171.11,5.8422]
[1747560543477,61.13795067,171.16,171.11,5.8422]
[1747560544078,5.8415,171.14,171.11,5.8422]
[1747560546077,66.54066181,171.16,171.1,86.87057117]
[1747560546276,63.32271114,171.16,171.11,3.21795067]
[1747560546478,63.32271114,171.16,171.14,5.8411]
[1747560546879,5.40271114,171.16,171.14,5.8411]
[1747560547078,5.40271114,171.16,171.15,5.841]
[1747560548181,130.30066181,171.18,171.15,5.841]
[1747560549483,5.8403,171.17,171.14,5.8412]
[1747560549781,124.46066181,171.18,171.14,5.8412]
[1747560550078,124.46066181,171.18,171.11,61.13795067]
[1747560550273,124.46066181,171.18,171.11,57.92]
[1747560550687,5.841,171.15,171.11,57.92]
[1747560551485,5.841,171.15,171.12,5.8419]
[1747560551689,5.841,171.15,171.11,57.92]
[1747560552185,5.841,171.15,171.12,5.8419]
[1747560554484,5.8413,171.14,171.12,5.8419]
[1747560555587,5.8411,171.15,171.12,5.8419]
[1747560556378,5.8411,171.15,171.11,57.92]
[1747560556578,9.05875067,171.16,171.11,57.92]
[1747560556880,3.21795067,171.16,171.11,57.92]
[1747560557588,5.841,171.15,171.11,57.92]
[1747560558390,5.841,171.15,171.12,5.8417]
[1747560558889,5.841,171.15,171.13,5.8416]
[1747560559182,9.05875067,171.16,171.13,5.8416]
[1747560561183,5.841,171.15,171.11,57.92]
[1747560561388,3.21795067,171.16,171.12,5.8419]
[1747560561788,5.8411,171.15,171.12,5.8419]
[1747560562591,5.8411,171.15,171.13,5.8415]
[1747560563886,5.8407,171.16,171.13,5.8415]
[1747560564694,5.8407,171.16,171.14,5.8412]
[1747560564892,5.8407,171.16,171.11,57.92]
[1747560565194,5.8407,171.16,171.13,5.8415]
[1747560566694,14.46106181,171.17,171.14,5.8413]
[1747560567598,5.8407,171.16,171.14,5.8413]
[1747560568799,11.24301114,171.17,171.15,5.8409]
[1747560569394,11.24301114,171.17,171.14,5.8412]
[1747560570304,5.8407,171.16,171.13,5.8415]
[1747560571002,5.8407,171.16,171.14,5.8413]
[1747560571401,5.8407,171.16,171.11,57.92]
[1747560571598,5.8407,171.16,171.13,5.8415]
[1747560571898,5.8407,171.16,171.11,57.92]
[1747560572400,5.8407,171.16,171.13,5.8414]
[1747560572601,5.841,171.15,171.11,57.92]
[1747560573494,5.841,171.15,171.12,5.8417]
[1747560575400,5.8413,171.14,171.12,5.8417]
[1747560575905,5.8412,171.15,171.12,5.8417]
[1747560576705,5.8412,171.15,171.13,5.8416]
[1747560577007,5.8409,171.16,171.13,5.8416]
[1747560577307,5.841,171.15,171.12,5.8418]
[1747560577503,5.841,171.15,171.1,90.08852184]
[1747560577703,5.40271114,171.17,171.1,90.08852184]
[1747560577903,5.8408,171.16,171.13,5.8414]
[1747560578912,11.24311114,171.17,171.14,5.8412]
[1747560579210,5.40271114,171.17,171.1,90.08852184]
[1747560579409,5.40271114,171.16,171.1,90.08852184]
[1747560579714,11.24331114,171.16,171.13,5.8414]
[1747560582011,5.40271114,171.16,171.12,5.8418]
[1747560582206,3.21795067,171.14,171.1,86.87057117]
[1747560582411,5.8419,171.13,171.1,92.71307117]
[1747560583416,3.21795067,171.16,171.1,86.87057117]
[1747560583814,5.841,171.15,171.13,5.8415]
[1747560584014,3.21795067,171.16,171.13,5.8415]
[1747560584516,9.05885067,171.16,171.13,5.8415]
[1747560585016,5.40271114,171.15,171.13,5.8415]
[1747560586620,11.24371114,171.15,171.13,5.8415]
[1747560588220,11.24371114,171.15,171.12,5.8418]
[1747560590022,11.24371114,171.15,171.13,5.8415]
[1747560591123,5.40271114,171.15,171.13,5.8415]
[1747560591629,11.24391114,171.15,171.12,5.8419]
[1747560591923,11.24391114,171.15,171.1,86.87057117]
[1747560592125,5.40271114,171.15,171.13,5.8416]
[1747560595929,11.24371114,171.15,171.13,5.8416]
[1747560600133,5.40271114,171.15,171.14,5.8413]
[1747560601234,5.40271114,171.15,171.13,5.8415]
[1747560602536,5.40271114,171.15,171.14,5.8413]
[1747560602740,5.40271114,171.16,171.1,90.08852184]
[1747560602932,5.40271114,171.16,171.12,3.21795067]
[1747560603234,5.40271114,171.16,171.12,61.11795067]
[1747560603632,5.40271114,171.16,171.15,5.841]
[1747560606237,5.40271114,171.2,171.18,5.8396]
[1747560606632,5.40271114,171.2,171.19,5.8396]
[1747560607038,5.40271114,171.2,171.14,5.07455067]
[1747560607333,5.40271114,171.2,171.18,5.8398]
[1747560607838,11.24201114,171.2,171.14,5.07455067]
[1747560608040,5.40271114,171.2,171.14,5.07455067]
[1747560608541,11.24201114,171.2,171.14,5.07455067]
[1747560608741,8.62066181,171.21,171.14,5.07455067]
[1747560609038,14.45966181,171.21,171.18,5.8397]
[1747560610741,5.40271114,171.21,171.19,5.8393]
[1747560611829,11.24131114,171.22,171.19,5.8393]
[1747560612030,11.24131114,171.22,171.2,5.8392]
[1747560612236,5.40271114,171.22,171.2,5.8392]
[1747560613743,11.24131114,171.22,171.19,5.8395]
[1747560613937,5.40271114,171.22,171.16,57.88]
[1747560614438,5.8391,171.21,171.18,5.8397]
[1747560614639,5.8391,171.21,171.16,57.88]
[1747560615134,5.8387,171.22,171.19,5.8396]
[1747560615946,5.8393,171.2,171.16,57.88]
[1747560616143,3.21795067,171.21,171.16,57.88]
[1747560616646,9.05705067,171.21,171.18,5.8397]
[1747560617245,9.05705067,171.21,171.19,5.8395]
[1747560617446,3.21795067,171.21,171.19,5.8395]
[1747560618848,9.05695067,171.21,171.18,5.8398]
[1747560619147,9.05695067,171.21,171.16,57.88]
[1747560619448,9.05695067,171.21,171.18,5.8397]
[1747560620253,9.05695067,171.21,171.19,5.8395]
[1747560620548,3.21795067,171.21,171.19,5.8395]
[1747560621543,3.21795067,171.21,171.16,57.88]
[1747560621544,5.40271114,171.23,171.16,61.09795067]
[1747560621744,137.72552953,171.24,171.16,61.09795067]
[1747560622950,143.56342953,171.24,171.16,61.09795067]
[1747560624347,11.24061114,171.24,171.19,3.21795067]
[1747560624556,5.40271114,171.24,171.21,3.21795067]
[1747560624751,5.40271114,171.24,171.22,57.86]
[1747560625046,5.40271114,171.25,171.24,5.8379]
[1747560626345,1.114e-05,171.25,171.24,5.8379]
[1747560628253,3.21795067,171.29,171.23,1.9279]
[1747560628754,3.21795067,171.29,171.28,5.8365]
[1747560629353,3.21795067,171.29,171.27,5.8367]
[1747560629542,3.21795067,171.29,171.22,59.7175]
[1747560629750,3.21795067,171.27,171.22,59.7175]
[1747560629948,3.21795067,171.27,171.24,5.8377]
[1747560630148,9.05485067,171.27,171.24,5.8377]
[1747560630451,9.05485067,171.27,171.2,59.849]
[1747560630452,3.21795067,171.25,171.2,59.849]
[1747560631148,3.21795067,171.25,171.22,5.8383]
[1747560631349,57.84,171.27,171.22,5.8383]
[1747560632060,5.8378,171.25,171.22,5.8383]
[1747560632451,57.84,171.27,171.23,5.8382]
[1747560632647,57.84,171.27,171.2,59.849]
[1747560632853,5.8373,171.26,171.2,59.849]
[1747560633153,5.8373,171.26,171.23,5.8382]
[1747560633353,63.677,171.27,171.2,59.849]
[1747560633655,5.837,171.27,171.2,59.849]
[1747560634559,5.837,171.27,171.24,5.8377]
[1747560634759,5.837,171.27,171.2,59.849]
[1747560635053,5.8367,171.28,171.25,5.8375]
[1747560635453,5.8369,171.27,171.25,5.8375]
[1747560636156,5.8369,171.27,171.24,5.8377]
[1747560636356,62.86330325,171.29,171.2,59.849]
[1747560636546,62.86330325,171.29,171.2,57.84]
[1747560636751,1.8332,171.28,171.2,57.84]
[1747560637363,3.7473,171.28,171.2,57.84]
[1747560638259,5.8381,171.24,171.21,5.8387]
[1747560639058,5.8383,171.23,171.2,57.84]
[1747560639264,57.84,171.27,171.16,59.8514]
[1747560639265,57.82,171.24,171.16,59.8514]
[1747560639755,5.8393,171.2,171.17,5.84]
[1747560642166,5.8396,171.19,171.16,65.6919]
[1747560643465,57.84,171.23,171.17,5.8402]
[1747560643667,57.84,171.23,171.16,59.8514]
[1747560644167,5.8391,171.21,171.17,5.8399]
[1747560644864,5.8391,171.21,171.18,5.8399]
[1747560645971,5.8386,171.22,171.19,5.8395]
[1747560646167,62.86330325,171.26,171.16,59.8514]
[1747560646467,5.8381,171.24,171.21,5.8387]
[1747560647667,5.8383,171.23,171.21,5.8387]
[1747560648167,5.8383,171.23,171.2,5.8391]
[1747560648559,5.839,171.21,171.16,59.8514]
[1747560648759,57.84,171.25,171.17,5.84]
[1747560648961,57.84,171.25,171.16,59.8514]
[1747560649474,57.84,171.25,171.13,57.82]
[1747560649475,5.02330325,171.23,171.13,57.82]
[1747560649675,57.82,171.22,171.13,57.82]
[1747560649862,57.82,171.21,171.13,57.82]
[1747560650769,57.82,171.21,171.14,5.8413]
[1747560650964,5.8405,171.17,171.14,5.8413]
[1747560652465,57.82,171.21,171.13,57.82]
[1747560653862,7.24478613,171.24,171.14,57.82]
[1747560654064,7.24478613,171.24,171.15,1.8233]
[1747560654672,7.24478613,171.24,171.23,5.8382]
[1747560656070,57.82,171.3,171.21,1.8368]
[1747560656474,5.8373,171.26,171.21,1.8368]
[1747560657370,5.837,171.27,171.21,1.8368]
[1747560657874,65.06478613,171.31,171.21,1.8368]
[1747560657875,5.8363,171.29,171.21,1.8368]
[1747560658175,7.24478613,171.31,171.21,1.8368]
[1747560658674,5.8359,171.3,171.21,1.8368]
[1747560658876,65.06478613,171.32,171.18,336.42]
[1747560659074,5.8364,171.29,171.25,5.8374]
[1747560659679,5.8366,171.28,171.24,5.8378]
[1747560659979,5.8366,171.28,171.23,57.82]
[1747560660280,5.8366,171.28,171.25,5.8375]
[1747560660480,57.82,171.3,171.23,57.82]
[1747560660881,5.8374,171.26,171.23,57.82]
[1747560661081,57.82,171.3,171.23,57.82]
[1747560661470,57.82,171.3,171.2,2.0005]
[1747560661675,5.02330325,171.29,171.19,57.82]
[1747560662186,6.99050325,171.29,171.19,57.82]
[1747560662385,5.8389,171.21,171.19,57.82]
[1747560663193,5.8396,171.19,171.16,5.47170887]
[1747560664590,5.8396,171.19,171.16,11.31230887]
[1747560664793,5.8399,171.18,171.15,59.7238]
[1747560664995,5.8399,171.18,171.15,57.82]
[1747560665593,5.8403,171.17,171.15,57.82]
[1747560666688,5.8403,171.17,171.1,341.87170887]
[1747560666885,5.8403,171.17,171.11,115.8]
[1747560667594,5.8403,171.17,171.14,5.8413]
[1747560668396,5.8403,171.17,171.13,5.8415]
[1747560669398,5.8406,171.16,171.12,5.8419]
[1747560670299,5.8406,171.16,171.13,5.8416]
[1747560670600,57.96,171.21,171.11,115.8]
[1747560671101,5.8403,171.18,171.14,5.8411]
[1747560671302,5.8403,171.18,171.11,115.8]
[1747560671602,5.8399,171.18,171.14,5.8412]
[1747560672497,5.8403,171.17,171.14,5.8412]
[1747560674197,5.8407,171.16,171.13,5.8415]
[1747560674396,57.96,171.21,171.11,57.82]
[1747560674397,5.02330325,171.2,171.11,57.82]
[1747560675405,5.02330325,171.2,171.1,5.8426]
[1747560675802,5.8415,171.14,171.1,5.8426]
[1747560676402,5.8416,171.13,171.09,11.5774]
[1747560676712,57.94,171.16,171.09,1.8508]
[1747560677002,5.8419,171.13,171.09,7.6937]
[1747560677204,5.8419,171.13,171.09,1.8508]
[1747560677702,5.8419,171.13,171.09,7.6937]
[1747560677900,5.842,171.12,171.09,7.6937]
[1747560678200,57.94,171.16,171.09,1.8508]
[1747560678400,5.8413,171.14,171.09,1.8508]
[1747560678700,120.80330325,171.17,171.09,1.8508]
[1747560679097,126.64390325,171.17,171.13,5.8415]
[1747560679602,5.8406,171.16,171.09,1.8508]